bitfinex-derivatives/quotes_ETHF0:USTF0_20260116
["timestamp","ask_amount","ask_price","bid_price","bid_amount"]
[1768580373353,15.29250266,3272.8,3271.2,0.00314259]
[1768580373754,15.2896,3272.6,3271.2,0.00314259]
[1768580374052,15.2896,3272.5,3271.2,0.00314259]
[1768580374254,15.2896,3272.6,3271.2,0.00314259]
[1768580374439,0.00290266,3272.8,3271.2,0.46649383]
[1768580376457,0.00290266,3272.8,3271.3,40.8]
[1768580376654,0.00290266,3272.8,3271.4,0.46195674]
[1768580377749,0.15276,3273.8,3271.7,0.45905408]
[1768580378248,15.2896,3273.7,3271.7,0.45905408]
[1768580378455,3.5934679,3274.7,3271.3,40.8]
[1768580378456,3.76873976,3274.6,3271.9,0.45995283]
[1768580378647,3.77243734,3274.6,3272.6,0.15282]
[1768580378849,0.00369758,3274.6,3272.8,0.45995283]
[1768580379045,0.00369758,3274.6,3272.9,0.94330797]
[1768580379248,0.00369758,3274.6,3273.0,0.33055514]
[1768580379452,0.00369758,3274.6,3273.1,0.33055514]
[1768580379747,0.00369758,3274.6,3273.2,0.33055514]
[1768580380053,15.29329758,3274.6,3273.3,0.33055514]
[1768580380248,0.00369758,3274.6,3273.4,0.33055514]
[1768580380555,0.00369758,3274.6,3273.5,0.33055514]
[1768580380758,0.00369758,3274.6,3273.6,0.33055514]
[1768580380954,0.00369758,3274.6,3273.5,0.00242347]
[1768580380955,15.29329758,3274.6,3273.7,0.33055514]
[1768580381247,15.29329758,3274.6,3273.8,0.33055514]
[1768580381248,15.2896,3274.5,3273.8,0.33055514]
[1768580381453,15.2896,3274.5,3273.9,0.33055514]
[1768580381654,15.2896,3274.4,3274.0,0.33055514]
[1768580381845,15.2896,3274.5,3274.1,0.33055514]
[1768580382044,0.00369758,3274.6,3274.2,0.33055514]
[1768580382245,3.61600976,3275.3,3274.3,0.33055514]
[1768580382440,15.2896,3275.2,3274.4,0.33055514]
[1768580382646,15.2896,3275.2,3274.5,0.33055514]
[1768580382848,3.61600976,3275.8,3274.6,0.33055514]
[1768580383049,3.61600976,3275.8,3274.7,0.33055514]
[1768580383253,3.61872586,3275.8,3274.8,0.30103219]
[1768580383450,15.2896,3275.7,3273.9,3.052]
[1768580383650,3.61872586,3275.8,3273.9,3.052]
[1768580383848,15.2096,3275.6,3273.9,3.052]
[1768580384050,15.2096,3275.5,3273.9,3.052]
[1768580384244,15.2096,3275.6,3273.8,0.15276]
[1768580384550,15.2096,3275.7,3273.8,3.20376]
[1768580384958,15.2096,3275.6,3273.8,3.20376]
[1768580385157,15.2096,3275.7,3273.8,3.20376]
[1768580385456,3.61872586,3275.8,3274.1,0.45078427]
[1768580385457,0.0027161,3275.8,3274.1,0.45078427]
[1768580385652,0.0027161,3275.8,3274.1,0.60353427]
[1768580385850,0.0027161,3275.8,3274.2,0.45078427]
[1768580386457,0.0027161,3275.8,3274.2,0.60352427]
[1768580386850,0.0027161,3275.8,3274.3,40.8]
[1768580387245,0.0027161,3275.8,3274.3,43.848]
[1768580387451,0.0027161,3275.8,3274.3,44.29247808]
[1768580388562,0.0027161,3275.8,3274.4,3.05]
[1768580389158,4.94612479,3276.3,3274.4,3.05]
[1768580389363,20.15572479,3276.3,3274.4,3.05]
[1768580389963,4.94612479,3276.3,3274.4,3.05]
[1768580390157,15.2096,3276.2,3274.4,3.05]
[1768580390360,3.61600976,3276.0,3274.2,0.15274]
[1768580390558,15.2096,3275.8,3273.8,0.45713957]
[1768580390767,3.61600976,3275.9,3274.0,3.054]
[1768580391068,15.2096,3275.8,3274.1,40.8]
[1768580391559,15.2096,3275.7,3273.8,2.09203954]
[1768580391760,15.2096,3275.7,3273.9,3.20676]
[1768580392066,15.2096,3275.7,3274.0,0.45740465]
[1768580392266,15.2096,3275.6,3274.0,0.45740465]
[1768580392564,15.2096,3275.8,3274.0,0.45740465]
[1768580393060,15.2096,3275.7,3274.0,0.61015465]
[1768580393263,15.2096,3275.9,3274.0,0.61015465]
[1768580393463,15.2096,3275.9,3274.0,2.24505462]
[1768580393762,15.2096,3275.8,3274.1,3.057]
[1768580393962,15.2096,3275.9,3274.1,3.057]
[1768580394161,15.2096,3275.9,3274.0,2.24505462]
[1768580394363,15.2096,3275.8,3274.2,4.69389997]
[1768580394564,15.2096,3275.9,3274.3,3.06]
[1768580394753,15.2096,3275.8,3274.3,3.06]
[1768580395161,15.2096,3275.6,3274.3,3.06]
[1768580395369,3.5371804,3276.2,3274.6,0.15272]
[1768580395559,3.5371804,3276.2,3274.7,1.93703509]
[1768580395862,3.5371804,3276.2,3274.8,0.30213512]
[1768580396054,15.2096,3276.1,3274.9,0.30213512]
[1768580396258,15.2096,3276.1,3274.7,3.06]
[1768580396259,5.39281484,3279.5,3275.0,0.30213512]
[1768580396565,3.5371804,3283.2,3278.3,1.8744679]
[1768580396754,3.5371804,3283.0,3282.0,0.8107247]
[1768580397058,3.5371804,3283.0,3281.9,0.8107247]
[1768580397263,5.2631804,3283.0,3281.0,2.16155658]
[1768580397467,3.5371804,3282.9,3281.9,0.00231746]
[1768580397657,3.5371804,3282.9,3280.5,1.65297486]
[1768580397859,3.5371804,3282.6,3280.7,2.16155658]
[1768580398161,32.20383189,3282.2,3280.8,2.16155658]
[1768580398462,32.20383189,3282.4,3280.5,1.65297486]
[1768580398662,32.20383189,3282.5,3280.6,2.16155658]
[1768580398863,35.73948879,3282.6,3280.5,3.81775948]
[1768580399254,35.73948879,3282.6,3280.5,1.6562029]
[1768580399457,32.20383189,3282.1,3280.5,0.00322804]
[1768580399660,33.93183189,3282.0,3280.5,0.00322804]
[1768580399864,32.20383189,3282.0,3280.5,0.00322804]
[1768580400156,0.00329093,3283.0,3280.5,0.00322804]
[1768580400361,32.20383189,3281.7,3280.5,0.00322804]
[1768580400568,1.729,3281.7,3280.5,0.00322804]
[1768580400767,3.5371804,3281.6,3280.5,0.00322804]
[1768580400967,32.20383189,3280.9,3279.3,1.69364839]
[1768580401158,1.73,3281.3,3279.3,1.69364839]
[1768580401466,1.73,3281.4,3279.3,1.69364839]
[1768580401766,33.93383189,3281.4,3279.3,1.69364839]
[1768580401957,1.73,3281.4,3279.3,1.69625469]
[1768580402269,32.20383189,3281.3,3279.3,1.69625469]
[1768580402668,32.20383189,3281.2,3279.3,1.69625469]
[1768580402863,32.20383189,3281.3,3279.3,1.69625469]
[1768580403461,1.734,3281.2,3279.3,1.69625469]
[1768580404256,1.734,3281.2,3279.3,0.0026063]
[1768580404257,3.5371804,3281.0,3279.3,0.0026063]
[1768580404460,32.20383189,3280.8,3279.3,0.0026063]
[1768580404661,32.20383189,3280.7,3279.3,0.0026063]
[1768580404869,32.20383189,3280.6,3279.3,0.0026063]
[1768580405060,32.20383189,3280.5,3279.3,0.0026063]
[1768580405256,32.20383189,3280.4,3279.3,0.0026063]
[1768580405669,32.20383189,3280.3,3279.3,0.0026063]
[1768580405964,32.20383189,3280.4,3279.3,0.0026063]
[1768580406362,32.20383189,3280.3,3279.3,0.0026063]
[1768580406564,1.736,3280.6,3279.3,0.0026063]
[1768580406764,32.20383189,3280.2,3279.3,0.0026063]
[1768580406965,0.00378598,3280.7,3279.6,1.9024071]
[1768580407165,5.2791804,3281.7,3279.8,0.15248]
[1768580407370,32.20383189,3281.5,3279.8,0.15248]
[1768580407674,32.20383189,3281.3,3279.8,0.15248]
[1768580408062,3.5371804,3282.3,3280.2,0.15246]
[1768580408267,1.743,3282.2,3280.2,0.15246]
[1768580408566,32.20383189,3282.0,3280.3,0.38780627]
[1768580408881,32.20383189,3281.9,3280.4,0.38780627]
[1768580409076,32.20383189,3281.7,3280.5,0.38780627]
[1768580409276,32.20383189,3281.8,3280.6,0.38780627]
[1768580409478,0.00262438,3281.9,3280.7,0.38780627]
[1768580409683,0.00262438,3281.9,3280.8,0.38780627]
[1768580409870,0.00262438,3281.9,3280.9,0.38780627]
[1768580410179,3.5371804,3283.3,3281.0,2.17744852]
[1768580410485,3.6894504,3284.3,3282.0,0.15238]
[1768580410664,3.6894504,3284.3,3282.1,0.38780627]
[1768580410868,32.20383189,3283.8,3282.2,0.38780627]
[1768580411063,1.746,3283.7,3282.3,0.38780627]
[1768580411266,32.20383189,3283.5,3282.4,0.38780627]
[1768580411477,5.28534933,3283.7,3282.5,0.38780627]
[1768580411782,32.20383189,3282.8,3282.3,0.00359711]
[1768580412076,32.20383189,3283.0,3282.3,0.00359711]
[1768580412278,32.20383189,3282.9,3282.3,0.00359711]
[1768580412680,30.89183189,3282.8,3282.3,0.00359711]
[1768580412978,30.89183189,3283.4,3282.3,0.00359711]
[1768580413180,0.00216893,3283.7,3282.3,0.00359711]
[1768580413369,30.89183189,3283.0,3282.3,0.00359711]
[1768580413676,30.89183189,3282.9,3281.5,1.85859322]
[1768580413982,32.64383189,3283.3,3281.6,0.88847129]
[1768580414178,30.89183189,3283.1,3281.7,0.88847129]
[1768580414477,3.5371804,3283.2,3280.8,4.0201498]
[1768580414776,1.752,3283.3,3280.8,4.0201498]
[1768580414777,3.5371804,3282.4,3280.9,0.88871274]
[1768580414979,32.64583189,3282.3,3280.8,0.00275351]
[1768580415161,30.89183189,3281.9,3280.9,0.88926257]
[1768580415367,30.89183189,3281.3,3279.7,2.31403658]
[1768580415568,5.2911804,3281.4,3279.8,0.89035684]
[1768580415769,5.2921804,3281.3,3279.9,0.89035684]
[1768580415975,30.89183189,3281.1,3279.0,45.59344604]
[1768580416177,30.89183189,3281.1,3279.1,0.89059444]
[1768580416378,3.5371804,3281.2,3279.2,0.89059444]
[1768580416569,1.75911147,3281.1,3279.3,0.89059444]
[1768580416771,1.75911147,3281.1,3279.4,0.89059444]
[1768580416970,30.89183189,3280.9,3279.5,0.89059444]
[1768580417172,30.89183189,3280.7,3279.6,0.89059444]
[1768580417474,30.89183189,3280.1,3279.1,0.00225397]
[1768580417674,3.5371804,3281.0,3279.1,0.00225397]
[1768580417675,1.757,3280.4,3279.1,0.00225397]
[1768580417874,30.89183189,3280.2,3279.1,0.00225397]
[1768580418069,1.757,3280.4,3279.1,0.00225397]
[1768580418275,30.89183189,3279.7,3279.1,0.00225397]
[1768580418476,30.89183189,3279.7,3278.7,1.59601879]
[1768580418677,30.89183189,3279.5,3278.7,1.59601879]
[1768580418870,3.5371804,3280.3,3278.7,1.59601879]
[1768580418871,30.89183189,3279.9,3278.7,1.59601879]
[1768580419072,30.89183189,3279.7,3278.6,1.59601879]
[1768580419383,30.89183189,3279.8,3278.7,1.59601879]
[1768580419579,30.89183189,3279.7,3278.7,1.59601879]
[1768580419880,30.89183189,3279.4,3278.7,1.59601879]
[1768580420080,30.89183189,3279.6,3278.7,1.59601879]
[1768580420281,30.89183189,3279.4,3278.7,1.59601879]
[1768580420669,3.5371804,3279.8,3278.5,1.60345263]
[1768580420973,3.5371804,3280.3,3278.4,2.63190946]
[1768580421283,3.5371804,3280.3,3278.6,0.15254]
[1768580421471,22.28242163,3280.3,3278.6,0.15254]
[1768580421776,22.28242163,3280.2,3278.6,0.15491807]
[1768580421984,22.28242163,3279.9,3278.6,0.00237807]
[1768580422179,3.52125877,3280.4,3278.6,0.00237807]
[1768580422874,1.767,3280.8,3278.8,0.15253]
[1768580423074,1.767,3280.8,3278.6,2.98584883]
[1768580423472,1.767,3280.8,3278.6,6.76923078]
[1768580423677,1.767,3280.8,3278.7,3.35071978]
[1768580423878,1.767,3280.8,3278.9,3.78338195]
[1768580424185,1.767,3280.8,3279.0,0.36724902]
[1768580424384,22.08404423,3280.5,3279.1,0.36724902]
[1768580424584,1.767,3280.8,3279.2,0.51974902]
[1768580424784,1.767,3280.8,3279.3,0.36724902]
[1768580424980,22.08404423,3280.7,3279.4,0.36724902]
[1768580425174,22.08404423,3280.7,3279.5,0.36724902]
[1768580425375,22.08404423,3280.7,3279.6,0.36724902]
[1768580425575,22.08404423,3280.7,3279.0,3.78338195]
[1768580425576,1.767,3280.8,3279.7,0.36724902]
[1768580425782,1.767,3280.8,3279.8,0.36724902]
[1768580425987,1.767,3280.8,3279.9,0.33332349]
[1768580426283,2.32047157,3284.8,3278.9,40.8]
[1768580426284,3.52125877,3283.3,3281.6,0.15239]
[1768580426471,3.52125877,3283.3,3281.7,0.33332349]
[1768580426783,3.52125877,3283.3,3281.6,0.15239]
[1768580426784,3.52125877,3283.3,3281.8,0.33332349]
[1768580426984,3.52125877,3283.3,3281.9,0.33332349]
[1768580427183,3.5248425,3283.3,3281.9,0.0036254]
[1768580427374,18.53767555,3282.5,3281.3,3.78221182]
[1768580427574,18.53767555,3282.9,3280.8,3.78221182]
[1768580427774,5.29025877,3283.1,3281.1,0.15242]
[1768580427971,23.82793432,3283.1,3281.1,0.15242]
[1768580428184,18.53767555,3282.9,3281.1,0.15242]
[1768580428385,18.53767555,3282.9,3281.1,0.15567165]
[1768580428584,18.53767555,3282.8,3281.1,0.15567165]
[1768580428884,18.53767555,3282.9,3281.1,0.15567165]
[1768580429279,18.53767555,3282.8,3281.1,0.15567165]
[1768580429481,18.53767555,3282.9,3281.2,0.76106822]
[1768580429683,3.36685036,3283.0,3281.3,0.76106822]
[1768580429882,3.36685036,3282.8,3281.4,0.76106822]
[1768580430077,18.53767555,3282.7,3281.5,0.76106822]
[1768580430285,1.77,3283.1,3281.6,0.76106822]
[1768580430583,18.53767555,3282.0,3281.1,0.00325165]
[1768580430790,18.53767555,3282.3,3281.1,0.00325165]
[1768580431085,18.53767555,3282.2,3281.1,0.00325165]
[1768580431491,18.53767555,3281.8,3281.1,0.00325165]
[1768580431691,18.53767555,3282.2,3281.1,0.00325165]
[1768580431878,0.15233,3283.0,3281.1,0.00325165]
[1768580432078,18.53767555,3282.8,3281.2,0.15241]
[1768580432395,3.36685036,3282.9,3281.3,2.16151068]
[1768580432579,18.53767555,3282.7,3281.3,2.16151068]
[1768580432782,18.53767555,3282.6,3281.3,2.16151068]
[1768580432995,18.53767555,3282.4,3281.3,2.31392068]
[1768580433278,18.53767555,3282.6,3281.3,2.31392068]
[1768580433682,18.53767555,3282.4,3281.3,0.15241]
[1768580433874,5.13985036,3283.1,3281.5,0.1524]
[1768580434081,3.36685036,3283.1,3281.5,0.1524]
[1768580434279,18.53767555,3282.9,3281.6,0.1524]
[1768580434679,18.53767555,3282.7,3281.6,0.1524]
[1768580434980,3.36685036,3283.0,3281.6,0.1524]
[1768580435180,18.53767555,3282.5,3281.6,0.1524]
[1768580435376,3.36685036,3283.0,3281.6,0.1524]
[1768580435691,18.53767555,3282.4,3281.6,0.1524]
[1768580435885,3.36685036,3283.0,3281.6,0.1524]
[1768580436084,16.06785945,3282.4,3281.4,2.16151068]
[1768580436289,16.06785945,3282.0,3281.1,0.00325165]
[1768580436482,16.06785945,3281.8,3281.1,0.00325165]
[1768580436683,16.06785945,3281.8,3280.4,3.78221182]
[1768580436684,7.42284789,3281.6,3280.2,0.15246]
[1768580436988,3.36685036,3281.6,3280.2,0.15246]
[1768580437187,7.42284789,3281.2,3280.2,0.15246]
[1768580437490,3.36685036,3280.9,3279.5,0.15249]
[1768580437679,5.14485036,3280.9,3279.5,0.15249]
[1768580437886,7.42284789,3280.3,3279.5,0.15249]
[1768580438090,7.42284789,3280.1,3279.5,0.15249]
[1768580438280,3.36685036,3280.8,3279.5,0.15249]
[1768580438486,3.36685036,3281.4,3279.2,2.47936946]
[1768580438694,3.36972288,3281.4,3279.9,0.15248]
[1768580438889,10.79257077,3281.4,3279.9,0.15248]
[1768580439200,7.42284789,3281.0,3279.9,0.15248]
[1768580439700,7.42284789,3280.8,3279.9,0.15248]
[1768580439896,7.42284789,3280.9,3279.9,0.15248]
[1768580440398,7.42284789,3280.8,3279.9,0.15248]
[1768580440592,7.42284789,3281.2,3279.8,2.47936946]
[1768580440792,7.42284789,3281.1,3280.1,1.62201732]
[1768580440993,7.42284789,3280.6,3279.2,0.00320541]
[1768580441192,7.42284789,3281.0,3279.6,0.15249]
[1768580441593,7.42284789,3280.6,3279.6,0.15249]
[1768580441786,7.42284789,3280.4,3279.6,0.15249]
[1768580442194,7.42284789,3280.0,3279.6,0.15249]
[1768580442394,7.42284789,3280.3,3279.6,0.15249]
[1768580442897,3.36685036,3281.1,3279.2,0.00320541]
[1768580443090,7.42284789,3280.3,3279.2,0.00320541]
[1768580443291,7.42284789,3280.2,3279.2,0.00320541]
[1768580443488,5.14585036,3280.4,3279.2,0.00320541]
[1768580444197,7.42284789,3279.9,3279.2,0.00320541]
[1768580444585,7.42284789,3279.6,3279.2,0.00320541]
[1768580444783,7.42284789,3279.9,3279.2,0.00320541]
[1768580445197,1.779,3281.0,3279.2,0.00320541]
[1768580445402,3.36685036,3280.9,3279.4,0.1525]
[1768580445584,7.06505078,3280.4,3279.4,0.1525]
[1768580445783,7.06505078,3280.3,3279.4,0.1525]
[1768580445989,7.06505078,3280.1,3279.4,0.1525]
[1768580446190,7.06505078,3280.0,3279.2,0.00320541]
[1768580446400,7.06505078,3280.2,3279.2,0.00320541]
[1768580446601,7.06505078,3279.9,3279.2,0.00320541]
[1768580446990,7.06505078,3279.6,3279.2,0.00320541]
[1768580447189,3.36685036,3280.4,3279.2,0.00320541]
[1768580447798,7.06505078,3279.8,3279.2,0.00320541]
[1768580448020,7.06505078,3279.6,3279.2,0.00320541]
[1768580448296,7.06505078,3279.5,3278.8,0.15253]
[1768580448506,3.36685036,3280.1,3278.4,2.1709172]
[1768580448701,7.06505078,3279.4,3278.4,2.1709172]
[1768580448890,7.06505078,3279.4,3278.3,2.1709172]
[1768580449091,7.06505078,3279.1,3278.3,2.1709172]
[1768580449286,7.06505078,3279.0,3278.3,2.17370139]
[1768580449487,7.06505078,3278.7,3278.3,0.00278419]
[1768580449900,7.06505078,3278.5,3278.3,0.00278419]
[1768580450108,7.06505078,3278.7,3278.3,0.00278419]
[1768580450605,7.06505078,3278.4,3278.3,0.00278419]
[1768580450902,7.06505078,3278.5,3278.3,0.00278419]
[1768580451096,0.00364995,3279.1,3278.3,0.00278419]
[1768580451988,3.41978587,3280.2,3279.0,0.15252]
[1768580452791,3.41978587,3280.1,3278.6,2.1709172]
[1768580452996,3.42360086,3280.1,3278.5,2.1709172]
[1768580453399,3.42360086,3280.1,3278.6,2.3234572]
[1768580453606,0.00381499,3280.1,3278.8,0.15253]
[1768580454707,0.00381499,3280.1,3278.9,0.15252]
[1768580454907,0.00381499,3280.1,3279.0,0.15252]
[1768580457411,3.42360086,3280.1,3278.9,1.08542016]
[1768580457906,3.42360086,3280.1,3279.0,1.08542016]
[1768580458704,3.42360086,3280.1,3278.9,1.08542016]
[1768580458908,3.42360086,3280.1,3278.8,1.08542016]
[1768580459113,3.42360086,3280.1,3278.7,1.08542016]
[1768580462199,3.42360086,3280.1,3278.8,1.08542016]
[1768580462813,3.42360086,3280.1,3278.7,1.08742362]
[1768580463001,3.42360086,3280.1,3278.3,1.63346059]
[1768580463002,0.15247,3280.0,3278.3,1.63346059]
[1768580463199,3.41978587,3279.9,3278.3,0.00278419]
[1768580463401,3.41978587,3279.9,3278.3,1.63346059]
[1768580463803,3.41978587,3279.9,3277.7,0.15257]
[1768580463804,3.41978587,3279.6,3278.0,1.6306764]
[1768580464004,3.41978587,3279.4,3278.0,1.6306764]
[1768580464211,3.41978587,3279.4,3277.6,2.1709172]
[1768580464818,3.41978587,3279.4,3277.6,2.17428794]
[1768580465010,3.41978587,3279.4,3277.6,0.00337074]
[1768580465211,3.57228587,3279.4,3277.6,2.17428794]
[1768580465410,3.57228587,3279.4,3277.6,0.00337074]
[1768580465610,3.41978587,3279.2,3277.6,0.00337074]
[1768580465813,3.41978587,3279.2,3276.7,3.7956347]
[1768580465814,3.41978587,3279.1,3277.2,2.1709172]
[1768580466011,3.57231587,3278.8,3277.0,2.1709172]
[1768580466310,3.57231587,3278.8,3277.1,2.1709172]
[1768580466712,3.57231587,3278.8,3277.0,2.1709172]
[1768580466916,3.57231587,3278.8,3277.0,2.17308948]
[1768580467312,3.57231587,3278.8,3277.2,2.1709172]
[1768580468420,3.57231587,3278.8,3277.1,2.1709172]
[1768580469110,3.57231587,3278.8,3277.0,2.17308948]
[1768580469812,1.78,3279.2,3277.0,2.17308948]
[1768580469813,1.78,3279.2,3277.1,3.35762225]
[1768580470013,3.57228587,3279.5,3277.7,4.03174417]
[1768580470414,3.41978587,3279.5,3277.9,2.1709172]
[1768580470719,3.41978587,3279.5,3277.8,2.1709172]
[1768580470921,3.41978587,3279.5,3277.9,2.1709172]
[1768580471513,3.41978587,3279.5,3277.8,2.1709172]
[1768580472410,1.78,3280.0,3277.9,5.52853945]
[1768580472723,1.78,3280.0,3278.1,5.52853945]
[1768580472916,3.42360086,3280.1,3278.4,2.1709172]
[1768580473420,3.42360086,3280.1,3278.2,5.52853945]
[1768580474012,3.42360086,3280.1,3278.1,2.1709172]
[1768580474314,0.15249,3279.6,3277.9,2.1709172]
[1768580474515,3.57227587,3279.6,3277.6,3.35762225]
[1768580474912,3.57227587,3279.6,3277.6,5.52853945]
[1768580475419,3.57228587,3279.5,3277.5,2.1709172]
[1768580477022,3.57229587,3279.3,3277.5,2.1709172]
[1768580477223,3.57229587,3279.3,3277.4,2.1709172]
[1768580480132,3.57229587,3279.3,3277.3,2.1709172]
[1768580480335,0.15255,3278.3,3277.0,0.00217228]
[1768580481428,3.6875004,3278.2,3276.2,3.35762225]
[1768580481623,3.5349404,3278.1,3275.9,2.1709172]
[1768580481931,3.5349404,3277.9,3275.7,46.46893791]
[1768580482129,3.5349404,3277.5,3275.4,2.1709172]
[1768580482428,3.6875304,3277.5,3275.4,0.00324513]
[1768580482635,3.69144617,3277.5,3275.4,0.00324513]
[1768580483426,0.1526,3277.4,3275.4,0.00324513]
[1768580483632,3.5349404,3277.4,3275.4,0.00324513]
[1768580484724,3.5349404,3277.2,3275.4,0.00324513]
[1768580486527,0.15261,3277.1,3275.4,0.00324513]
[1768580486729,0.00391577,3277.5,3275.4,3.50126584]
[1768580487634,0.00391577,3277.5,3275.6,3.49802071]
[1768580487830,0.00391577,3277.5,3275.7,3.65069071]
[1768580488138,0.00391577,3277.5,3276.2,5.13161353]
[1768580488337,0.00391577,3277.5,3276.3,5.13161353]
[1768580488637,0.00391577,3277.5,3276.5,3.49802071]
[1768580489936,0.15254,3278.6,3276.5,3.49802071]
[1768580490239,0.15254,3278.6,3276.8,1.63359282]
[1768580490430,0.15254,3278.6,3276.8,4.96583637]
[1768580490627,5.19468548,3279.3,3277.1,4.96583637]
[1768580490833,0.15251,3279.2,3277.1,4.96583637]
[1768580491033,0.15562219,3279.2,3277.1,4.96583637]
[1768580491537,3.57030767,3279.2,3277.1,4.96583637]
[1768580492335,3.57030767,3279.2,3277.3,3.33224355]
[1768580495546,3.57030767,3279.2,3277.3,4.96583637]
[1768580495744,3.57030767,3279.2,3277.3,3.33224355]
[1768580496245,3.57030767,3279.2,3277.3,4.96583637]
[1768580496442,3.57030767,3279.2,3277.5,1.63359282]
[1768580496646,3.56719548,3279.1,3277.2,1.63359282]
[1768580496940,3.56720548,3279.0,3277.2,1.63359282]
[1768580497247,0.15255,3278.4,3276.8,1.63359282]
[1768580497444,3.56723548,3278.4,3276.8,1.63359282]
[1768580497652,3.41468548,3278.3,3276.6,1.63359282]
[1768580497855,3.56725548,3277.9,3276.4,1.63359282]
[1768580498051,3.56726548,3277.8,3276.2,1.63359282]
[1768580498266,3.053,3278.3,3276.4,1.63359282]
[1768580498846,0.15254,3278.5,3276.8,1.63359282]
[1768580499553,0.15254,3278.5,3276.9,1.63359282]
[1768580499749,0.15254,3278.5,3276.8,1.63359282]
[1768580500147,0.15254,3278.5,3276.9,1.63359282]
[1768580503354,0.15254,3278.5,3277.0,1.63359282]
[1768580503854,0.15254,3278.5,3276.9,1.63359282]
[1768580505064,0.15255,3278.4,3276.9,1.63359282]
[1768580505255,0.15255,3278.4,3276.8,1.63359282]
[1768580505966,0.15255,3278.3,3276.8,1.63359282]
[1768580506460,3.56723548,3278.3,3276.8,1.63359282]
[1768580506663,3.41468548,3278.3,3276.6,1.63359282]
[1768580507065,0.15256,3278.1,3276.6,1.63359282]
[1768580507263,0.15256,3278.1,3276.5,1.63359282]
[1768580507569,0.15256,3278.1,3276.3,2.1709172]
[1768580507570,0.15256,3278.1,3276.6,1.63359282]
[1768580507756,0.15256,3278.1,3276.5,1.63359282]
[1768580507757,0.15257,3278.0,3276.5,1.63359282]
[1768580508156,0.15258,3277.8,3276.4,1.63359282]
[1768580508359,3.56726548,3277.8,3276.3,1.63359282]
[1768580508961,0.15258,3277.8,3276.3,4.96583637]
[1768580509358,0.15258,3277.8,3276.4,1.63359282]
[1768580509559,5.19368548,3278.3,3276.5,3.33224355]
[1768580509861,1.779,3278.3,3276.7,1.63359282]
[1768580511459,3.41468548,3278.9,3277.0,1.63359282]
[1768580511657,3.41468548,3278.9,3277.2,1.63359282]
[1768580512060,3.56720548,3278.9,3277.2,1.63359282]
[1768580512257,3.43403986,3278.7,3277.1,1.63359282]
[1768580512457,0.15254,3278.5,3277.1,1.63359282]
[1768580512665,0.15255,3278.3,3276.8,1.63359282]
[1768580512869,3.58658986,3278.3,3276.8,1.63359282]
[1768580513067,3.58658986,3278.3,3276.7,1.63359282]
[1768580513772,0.15255,3278.3,3276.8,1.63359282]
[1768580513972,0.15255,3278.3,3276.9,1.63359282]
[1768580514673,0.15252,3278.9,3277.2,1.63359282]
[1768580515466,0.15252,3278.9,3277.1,3.47109772]
[1768580515467,0.15252,3278.9,3277.3,1.63359282]
[1768580515864,3.053,3279.1,3277.3,1.63359282]
[1768580516069,0.71495139,3279.0,3277.3,1.63359282]
[1768580516379,0.15253,3278.7,3277.4,1.63359282]
[1768580516968,0.15253,3278.7,3277.3,1.63359282]
[1768580517478,0.15253,3278.7,3277.4,1.63359282]
[1768580517777,0.15254,3278.6,3277.4,1.63359282]
[1768580517974,2.19211242,3281.3,3278.1,1.63359282]
[1768580518275,2.19211304,3283.3,3281.3,3.47109772]
[1768580518463,0.15229,3283.9,3281.7,0.81398005]
[1768580518671,0.05304053,3283.7,3282.1,0.81398005]
[1768580518874,2.19211304,3283.8,3281.9,0.81398005]
[1768580519178,5.96546471,3283.2,3282.3,0.81398005]
[1768580519481,5.96546471,3283.4,3282.1,0.00273666]
[1768580519774,5.96546471,3283.1,3282.1,0.81671671]
[1768580520166,5.96546471,3282.8,3282.1,0.81671671]
[1768580520372,2.19211304,3283.6,3282.2,0.81398005]
[1768580520571,5.96546471,3283.2,3282.1,0.00273666]
[1768580521077,5.96546471,3283.0,3282.1,0.00273666]
[1768580521377,8.15757775,3282.9,3282.1,0.00273666]
[1768580521579,5.96546471,3282.9,3282.1,0.00273666]
[1768580521875,5.96546471,3282.5,3282.1,0.00273666]
[1768580522074,2.19211304,3283.5,3282.1,0.00273666]
[1768580522379,5.96546471,3282.6,3282.1,0.00273666]
[1768580522979,5.96546471,3282.2,3281.6,3.47109772]
[1768580523175,5.96546471,3282.8,3281.6,3.47109772]
[1768580523476,3.43403986,3282.9,3280.7,0.81398005]
[1768580523666,3.43403986,3282.9,3280.7,4.28507777]
[1768580523870,5.96546471,3282.5,3280.7,3.47453081]
[1768580524273,3.43403986,3282.9,3280.7,3.47453081]
[1768580524479,5.96546471,3282.5,3280.7,3.47453081]
[1768580524681,3.43403986,3282.7,3280.7,3.47453081]
[1768580524869,5.96546471,3282.0,3280.7,0.00343309]
[1768580525370,5.96546471,3281.6,3280.7,0.00343309]
[1768580525572,5.96546471,3282.0,3280.7,0.00343309]
[1768580526079,5.96546471,3281.5,3280.7,0.00343309]
[1768580526280,5.96546471,3282.0,3280.7,0.00343309]
[1768580526577,5.96546471,3281.8,3280.7,0.00343309]
[1768580526787,5.6261529,3282.4,3280.7,0.00343309]
[1768580526970,5.96546471,3281.6,3280.7,0.00343309]
[1768580527274,5.96546471,3281.5,3280.7,0.00343309]
[1768580527474,0.15238,3282.0,3280.7,0.00343309]
[1768580527675,2.19211304,3281.9,3280.7,0.00343309]
[1768580527878,5.96546471,3281.1,3279.6,0.81398005]
[1768580528071,5.96546471,3281.6,3279.6,4.28507777]
[1768580528272,5.96546471,3281.3,3279.6,3.47109772]
[1768580528469,5.96546471,3281.1,3279.6,3.47109772]
[1768580528871,5.96546471,3280.8,3279.6,3.47373168]
[1768580529179,5.96546471,3280.6,3279.6,0.00263396]
[1768580529370,3.43403986,3283.9,3281.3,0.15241]
[1768580529567,3.43403986,3283.5,3280.9,0.81398005]
[1768580529773,3.43403986,3283.6,3281.3,0.15241]
[1768580530174,3.43403986,3283.6,3281.3,0.96639005]
[1768580530380,5.36674594,3283.6,3281.3,0.81398005]
[1768580530581,5.36674594,3283.6,3281.1,0.81398005]
[1768580531273,5.36674594,3283.6,3281.1,3.47109772]
[1768580531582,5.36674594,3283.6,3281.6,1.85709361]
[1768580531879,3.43403986,3283.5,3281.2,0.81398005]
[1768580532076,3.43403986,3283.0,3281.0,0.96640005]
[1768580532383,3.43403986,3283.0,3280.7,0.81398005]
[1768580533177,3.43403986,3283.0,3280.8,0.81398005]
[1768580533775,5.21003986,3283.0,3280.8,0.81398005]
[1768580533975,5.21003986,3283.0,3280.9,1.85709361]
[1768580534175,5.21003986,3283.0,3280.9,5.32819133]
[1768580534377,1.776,3283.0,3281.0,4.28507777]
[1768580534684,3.05,3283.2,3281.0,4.28507777]
[1768580534685,3.05,3283.2,3281.4,5.32819133]